bitfinex/quotes_BTCUSD_20240902
["timestamp","ask_amount","ask_price","bid_price","bid_amount"]
[1725298015563,1.63996,58519.0,58518.0,0.0642976]
[1725298016702,1.63996,58519.0,58518.0,0.0008976]
[1725298017145,1.64196,58519.0,58518.0,0.0008976]
[1725298020212,1.63996,58519.0,58518.0,0.0008976]
[1725298022006,1.80851164,58519.0,58518.0,0.0008976]
[1725298022898,1.63996,58519.0,58518.0,0.0008976]
[1725298024314,1.63996,58519.0,58518.0,0.1478976]
[1725298025420,1.49383013,58519.0,58518.0,0.1478976]
[1725298026138,0.614653,58519.0,58518.0,0.1478976]
[1725298026577,0.614653,58519.0,58518.0,0.16486834]
[1725298026786,0.956422,58519.0,58518.0,0.16486834]
[1725298027053,0.613653,58519.0,58518.0,0.16486834]
[1725298027265,0.612653,58519.0,58518.0,0.16486834]
[1725298028417,1.15006113,58519.0,58518.0,0.16486834]
[1725298028869,1.49183013,58519.0,58518.0,0.1478976]
[1725298031956,1.49283013,58519.0,58518.0,0.1478976]
[1725298032204,1.84559913,58519.0,58518.0,0.0008976]
[1725298033253,1.84359913,58519.0,58518.0,0.0008976]
[1725298033658,1.64996,58519.0,58518.0,0.0008976]
[1725298033890,1.64896,58519.0,58518.0,0.0008976]
[1725298034099,1.64796,58519.0,58518.0,0.0008976]
[1725298034282,1.64896,58519.0,58518.0,0.0008976]
[1725298034538,1.64996,58519.0,58518.0,0.0008976]
[1725298036647,1.42631354,58519.0,58518.0,0.0008976]
[1725298036851,1.59719754,58519.0,58518.0,0.0008976]
[1725298040734,1.59919754,58519.0,58518.0,0.0008976]
[1725298041589,1.59719754,58519.0,58518.0,0.0008976]
[1725298042040,1.48719754,58519.0,58518.0,0.1375976]
[1725298042303,1.14542854,58519.0,58518.0,0.1375976]
[1725298043376,1.14442854,58519.0,58518.0,0.1375976]
[1725298043623,1.14342854,58519.0,58518.0,0.1375976]
[1725298044072,0.80165954,58519.0,58518.0,0.1375976]
[1725298044300,0.341741,58524.0,58520.0,0.0602]
[1725298044301,0.170871,58524.0,58520.0,0.0602]
[1725298044515,0.170871,58524.0,58521.0,0.1033]
[1725298044725,0.170871,58524.0,58522.0,0.0803]
[1725298044942,0.170871,58524.0,58523.0,0.1635]
[1725298045372,0.170871,58524.0,58523.0,0.17945957]
[1725298045582,0.170867,58525.0,58524.0,0.0803]
[1725298045785,0.170867,58525.0,58524.0,0.1033]
[1725298047931,0.512601,58525.0,58524.0,0.1033]
[1725298048353,0.512601,58525.0,58524.0,0.1698]
[1725298049180,0.512601,58525.0,58524.0,0.18675753]
[1725298049806,0.19563913,58528.0,58525.0,0.081]
[1725298049807,0.341717,58528.0,58525.0,0.081]
[1725298050052,0.341713,58529.0,58524.0,0.03995753]
[1725298050053,0.512583,58527.0,58526.0,0.1419]
[1725298050270,0.512583,58527.0,58526.0,0.15885345]
[1725298050922,0.341693,58532.0,58528.0,0.1384]
[1725298051179,0.170855,58529.0,58528.0,0.1384]
[1725298051810,0.512565,58529.0,58528.0,0.1384]
[1725298052018,0.170855,58529.0,58528.0,0.1384]
[1725298052651,0.170853,58530.0,58527.0,0.17086]
[1725298052862,0.170855,58529.0,58528.0,0.1384]
[1725298053077,0.512565,58529.0,58528.0,0.1384]
[1725298053517,0.513565,58529.0,58528.0,0.1384]
[1725298053753,0.512565,58529.0,58528.0,0.1384]
[1725298054405,0.512565,58529.0,58528.0,0.15534566]
[1725298054634,0.513565,58529.0,58528.0,0.15534566]
[1725298054848,0.514565,58529.0,58528.0,0.15534566]
[1725298055925,0.172855,58529.0,58528.0,0.15534566]
[1725298056136,0.172855,58529.0,58528.0,0.1384]
[1725298056379,0.172855,58529.0,58528.0,0.15534566]
[1725298058553,0.002,58529.0,58528.0,0.15534566]
[1725298058776,0.002,58529.0,58528.0,0.69091966]
[1725298059886,0.002,58529.0,58528.0,0.34920366]
[1725298061494,0.002,58529.0,58528.0,1.03263566]
[1725298063737,0.002816,58529.0,58528.0,1.03263566]
[1725298066418,0.002816,58529.0,58528.0,1.37435166]
[1725298067090,0.002816,58529.0,58528.0,1.03263566]
[1725298067773,0.002816,58529.0,58528.0,1.37435166]
[1725298068497,0.000816,58537.0,58536.0,1.339645]
[1725298068747,0.000816,58537.0,58536.0,1.362645]
[1725298068967,0.000816,58537.0,58536.0,1.37961077]
[1725298069878,0.001816,58537.0,58536.0,1.37961077]
[1725298070094,0.002816,58537.0,58536.0,1.37961077]
[1725298070569,0.002816,58537.0,58536.0,1.03794077]
[1725298080288,0.002816,58537.0,58536.0,1.37961077]
[1725298080504,0.002816,58537.0,58536.0,1.03794077]
[1725298080958,0.002816,58537.0,58536.0,1.37961077]
[1725298081833,0.37108197,58568.0,58537.0,0.1474]
[1725298082064,0.37108197,58568.0,58536.0,0.38163577]
[1725298082065,0.170804,58547.0,58544.0,0.1474]
[1725298082296,0.341635,58542.0,58541.0,0.0652]
[1725298082515,0.854087,58542.0,58541.0,0.0652]
[1725298082943,0.512452,58542.0,58541.0,0.0652]
[1725298084083,0.19563913,58549.0,58541.0,0.0882]
[1725298084335,0.341604,58548.0,58542.0,0.193816]
[1725298084559,0.341604,58548.0,58543.0,0.315214]
[1725298084794,0.170804,58547.0,58544.0,0.023]
[1725298085017,0.19563913,58545.0,58544.0,0.03794696]
[1725298087533,0.19663913,58545.0,58544.0,0.03894696]
[1725298087964,0.19745513,58545.0,58544.0,0.03894696]
[1725298088203,0.19745513,58545.0,58544.0,0.04094696]
[1725298089753,0.36826313,58545.0,58544.0,0.04094696]
[1725298095407,0.172624,58545.0,58544.0,0.04094696]
[1725298096775,0.855858,58545.0,58544.0,0.04094696]
[1725298097003,0.80988013,58545.0,58544.0,0.04094696]
[1725298097221,0.80988013,58545.0,58544.0,0.024]
[1725298097437,0.80988013,58545.0,58544.0,0.04094339]
[1725298098119,0.80988013,58545.0,58544.0,0.024]
[1725298098561,0.80988013,58545.0,58544.0,0.04094339]
[1725298099011,0.80988013,58545.0,58544.0,0.024]
[1725298099938,0.80988013,58545.0,58544.0,0.04094339]
[1725298100138,0.80988013,58545.0,58544.0,0.04184099]
[1725298102203,0.614241,58545.0,58544.0,0.04184099]
[1725298105418,0.272624,58545.0,58544.0,0.04184099]
[1725298105650,0.172624,58545.0,58544.0,0.18274099]
[1725298105894,0.172624,58545.0,58544.0,0.69517499]
[1725298105895,0.001816,58545.0,58544.0,0.69517499]
[1725298106150,0.001816,58545.0,58544.0,1.37842099]
[1725298108587,0.001816,58545.0,58544.0,1.37642099]
[1725298108855,0.000816,58545.0,58544.0,1.37542099]
[1725298109103,0.000816,58545.0,58544.0,1.37842099]
[1725298109104,0.002816,58545.0,58544.0,1.37842099]
[1725298110596,0.002816,58545.0,58544.0,2.08004399]
[1725298111106,0.002816,58545.0,58544.0,2.08204399]
[1725298111595,0.002816,58545.0,58544.0,2.15875846]
[1725298111833,0.002816,58545.0,58544.0,2.14675846]
[1725298112075,0.002816,58545.0,58544.0,1.73842099]
[1725298112294,0.002816,58545.0,58544.0,1.78955463]
[1725298112531,0.002816,58545.0,58544.0,1.73842099]
[1725298112966,0.002816,58545.0,58544.0,1.74042099]
[1725298113208,0.002816,58545.0,58544.0,1.73842099]
[1725298113672,0.002816,58545.0,58544.0,2.08004399]
[1725298113916,0.002816,58545.0,58544.0,2.15675846]
[1725298114358,0.002816,58545.0,58544.0,2.08004399]
[1725298115563,0.002816,58545.0,58544.0,2.13116491]
[1725298115796,0.002816,58545.0,58544.0,2.08004399]
[1725298116018,0.002816,58545.0,58544.0,2.13116493]
[1725298117127,0.002816,58545.0,58544.0,1.78954193]
[1725298117579,0.002816,58545.0,58544.0,1.73842099]
[1725298117830,0.002816,58545.0,58544.0,1.78954193]
[1725298118284,0.002816,58545.0,58544.0,1.79638993]
[1725298118515,0.002816,58545.0,58544.0,1.74526899]
[1725298118756,0.002816,58545.0,58544.0,1.77441814]
[1725298118985,0.002816,58545.0,58544.0,1.82752558]
[1725298119879,0.002816,58545.0,58544.0,1.77441814]
[1725298120110,0.002816,58545.0,58544.0,1.82552558]
[1725298120375,0.002816,58545.0,58544.0,1.77441814]
[1725298120611,0.002816,58545.0,58544.0,1.77641699]
[1725298121751,0.002816,58545.0,58544.0,1.7764209]
[1725298123796,0.002816,58545.0,58544.0,1.77643034]
[1725298124250,0.002816,58545.0,58544.0,2.11805334]
[1725298124461,0.002816,58545.0,58544.0,2.11605334]
[1725298124892,0.002816,58545.0,58544.0,2.11805334]
[1725298125580,0.002816,58545.0,58544.0,1.73834]
[1725298125789,0.002816,58545.0,58544.0,1.94945002]
[1725298126024,0.002816,58545.0,58544.0,2.06666715]
[1725298126683,0.002816,58545.0,58544.0,2.06466715]
[1725298127560,0.002816,58545.0,58544.0,2.0823638]
[1725298127999,0.002816,58545.0,58544.0,2.0843638]
[1725298128622,0.002816,58545.0,58544.0,2.2256638]
[1725298130182,0.002816,58545.0,58544.0,2.2236638]
[1725298130394,0.002816,58545.0,58544.0,2.2256638]
[1725298130634,0.002816,58545.0,58544.0,2.2236638]
[1725298131767,0.002816,58545.0,58544.0,2.27677124]
[1725298132219,0.002816,58545.0,58544.0,2.61839424]
[1725298132436,0.002816,58545.0,58544.0,2.6672868]
[1725298133092,0.341466,58571.0,58559.0,0.341532]
[1725298133315,0.170737,58570.0,58567.0,0.170743]
[1725298133529,0.28795013,58571.0,58567.0,0.170743]
[1725298133745,0.28795013,58571.0,58568.0,0.01583817]
[1725298134396,0.29795013,58571.0,58568.0,0.01583817]
[1725298134613,0.170736,58570.0,58568.0,0.01583817]
[1725298134845,0.28795013,58571.0,58568.0,0.01583817]
[1725298135100,0.28795013,58571.0,58568.0,0.01683817]
[1725298135325,0.170736,58570.0,58568.0,0.01583817]
[1725298135781,0.11721713,58571.0,58565.0,0.341499]
[1725298136011,0.341451,58574.0,58569.0,0.18657109]
[1725298136237,0.17961713,58573.0,58570.0,0.170735]
[1725298136477,0.17961713,58573.0,58571.0,0.170731]
[1725298136705,0.17961713,58573.0,58570.0,0.35730106]
[1725298136930,0.17961713,58573.0,58571.0,0.01582902]
[1725298137146,0.0624,58573.0,58571.0,0.01482902]
[1725298137369,0.0624,58573.0,58571.0,0.18556102]
[1725298137801,0.0624,58573.0,58571.0,0.01482902]
[1725298138014,0.0634,58573.0,58571.0,0.01482902]
[1725298138460,0.234127,58573.0,58571.0,0.01482902]
[1725298138679,0.234127,58573.0,58571.0,0.01582902]
[1725298139616,0.233127,58573.0,58571.0,0.01582902]
[1725298140065,0.17073,58572.0,58571.0,0.01682902]
[1725298140297,0.85365,58572.0,58571.0,0.01682902]
[1725298140524,0.99455,58572.0,58571.0,0.002]
[1725298140955,0.99455,58572.0,58571.0,0.001]
[1725298142105,1.33601,58572.0,58571.0,0.001]
[1725298142318,1.33601,58572.0,58557.0,0.50540786]
[1725298142319,0.512277,58562.0,58557.0,0.50540786]
[1725298142532,0.512277,58562.0,58561.0,0.06522004]
[1725298142533,0.68959413,58562.0,58561.0,0.06522004]
[1725298142777,0.170763,58561.0,58556.0,0.170775]
[1725298143207,0.51883513,58562.0,58557.0,0.1865403]
[1725298143208,0.170765,58560.0,58557.0,0.1865403]
[1725298143657,0.17077,58558.0,58557.0,0.0157673]
[1725298144097,0.45875213,58559.0,58554.0,0.170781]
[1725298144098,0.170774,58557.0,58554.0,0.170781]
[1725298144312,0.170774,58557.0,58555.0,0.03877239]
[1725298144528,0.341542,58558.0,58555.0,0.03877239]
[1725298144744,0.170773,58557.0,58555.0,0.03877239]
[1725298144957,0.170771,58558.0,58557.0,0.009]
[1725298145171,0.170771,58558.0,58557.0,0.023]
[1725298145399,0.512312,58558.0,58557.0,0.03876992]
[1725298145609,0.512312,58558.0,58557.0,0.01576992]
[1725298145825,0.512312,58558.0,58557.0,0.03876992]
[1725298147424,0.512312,58558.0,58557.0,0.04876992]
[1725298147873,0.512312,58558.0,58557.0,0.05776992]
[1725298148302,0.512312,58558.0,58557.0,0.05866752]
[1725298149807,0.511712,58558.0,58557.0,0.05866752]
[1725298150247,0.511612,58558.0,58557.0,0.05866752]
[1725298150686,0.511112,58558.0,58557.0,0.05866752]
[1725298151113,0.511012,58558.0,58557.0,0.0428976]
[1725298151337,0.510912,58558.0,58557.0,0.0428976]
[1725298151547,0.510412,58558.0,58557.0,0.0428976]
[1725298151987,0.510212,58558.0,58557.0,0.0428976]
[1725298154429,0.168671,58558.0,58557.0,0.0428976]
[1725298154656,0.168671,58558.0,58557.0,0.1067976]
[1725298154893,0.170768,58559.0,58557.0,0.1067976]
[1725298155111,0.170768,58559.0,58557.0,0.12278438]
[1725298155347,0.170769,58559.0,58557.0,0.12278438]
[1725298155597,0.170769,58559.0,58558.0,0.023]
[1725298155835,0.341527,58561.0,58558.0,0.023]
[1725298155836,0.170762,58561.0,58558.0,0.023]
[1725298156062,0.170762,58561.0,58558.0,0.03898474]
[1725298156336,0.512273,58563.0,58558.0,0.03898474]
[1725298156562,0.170753,58564.0,58558.0,0.03898474]
[1725298157513,0.170753,58564.0,58558.0,0.04398474]
[1725298157738,0.0635,58570.0,58560.0,0.341529]
[1725298157965,0.0635,58570.0,58562.0,0.170758]
[1725298158252,0.170738,58569.0,58563.0,0.023]
[1725298158471,0.170738,58569.0,58564.0,0.1414]
[1725298158708,0.170736,58570.0,58565.0,0.023]
[1725298158937,0.170736,58570.0,58565.0,0.03897048]
[1725298159605,0.17074,58569.0,58565.0,0.03897048]
[1725298159835,0.341472,58570.0,58565.0,0.03897048]
[1725298159836,0.170736,58570.0,58565.0,0.03897048]
[1725298160331,0.170736,58570.0,58565.0,0.04097048]
[1725298160580,0.170734,58571.0,58565.0,0.04097048]
[1725298160817,0.170737,58570.0,58565.0,0.04497048]
[1725298161288,0.341465,58572.0,58565.0,0.04097048]
[1725298161500,0.341465,58572.0,58565.0,0.04197048]
[1725298161501,0.170736,58570.0,58565.0,0.04197048]
[1725298161929,0.170733,58571.0,58565.0,0.04197048]
[1725298162141,0.170736,58570.0,58565.0,0.04197048]
[1725298162545,0.170737,58570.0,58565.0,0.04197048]
[1725298162794,0.170737,58570.0,58565.0,0.04297048]
[1725298163009,0.170737,58570.0,58565.0,0.03997048]
[1725298163463,0.170737,58570.0,58565.0,0.03897048]
[1725298163680,0.170737,58570.0,58565.0,0.04097048]
[1725298163908,0.170737,58570.0,58565.0,0.04397048]
[1725298165309,0.170733,58571.0,58565.0,0.21471948]
[1725298165755,0.170733,58571.0,58565.0,0.04397048]
[1725298166394,0.170733,58571.0,58565.0,0.04197048]
[1725298166671,0.170733,58571.0,58565.0,0.04097048]
[1725298166888,0.170733,58571.0,58565.0,0.04397048]
[1725298167110,0.28876113,58573.0,58567.0,0.234043]
[1725298167332,0.000816,58573.0,58568.0,0.1971544]
[1725298167547,0.000816,58573.0,58568.0,0.21311674]
[1725298167771,0.000816,58573.0,58569.0,0.170738]
[1725298168013,0.000816,58573.0,58570.0,0.19714834]
[1725298168248,0.000816,58573.0,58571.0,0.232732]
[1725298168470,0.000816,58573.0,58572.0,0.10801424]
[1725298168697,0.000816,58573.0,58572.0,0.3566957]
[1725298168923,0.000816,58573.0,58572.0,1.0396157]
[1725298169140,0.000816,58573.0,58572.0,1.09077156]
[1725298169372,0.000816,58573.0,58572.0,1.44223156]
[1725298169606,0.000816,58573.0,58572.0,1.83684743]
[1725298169830,0.000816,58573.0,58572.0,1.86242537]
[1725298170056,0.000816,58573.0,58572.0,1.7345357]
[1725298170339,0.000816,58573.0,58572.0,1.7828257]
[1725298170561,0.170664,58595.0,58588.0,0.0616]
[1725298170562,0.170668,58593.0,58588.0,0.0616]
[1725298170782,0.170681,58589.0,58583.0,0.0616]
[1725298171009,0.11721713,58585.0,58584.0,0.023]
[1725298171451,0.170695,58584.0,58580.0,0.023]
[1725298171689,0.341382,58586.0,58580.0,0.023]
[1725298171690,0.170698,58583.0,58580.0,0.023]
[1725298172394,0.170694,58585.0,58580.0,0.023]
[1725298172625,0.341368,58588.0,58583.0,0.014]
[1725298172626,0.170684,58588.0,58583.0,0.014]
[1725298172886,0.170684,58588.0,58584.0,0.02641353]
[1725298173589,0.170686,58587.0,58584.0,0.02641353]
[1725298173808,0.170686,58587.0,58584.0,0.023]
[1725298174021,0.170686,58587.0,58583.0,0.023]
[1725298174244,0.170686,58587.0,58585.0,0.01591219]
[1725298174457,0.341344,58592.0,58586.0,0.023]
[1725298174698,0.170669,58593.0,58587.0,0.232285]
[1725298174922,0.341338,58593.0,58588.0,0.023]
[1725298175157,0.170674,58591.0,58588.0,0.023]
[1725298175392,0.000816,58597.0,58590.0,0.0782]
[1725298175622,0.000816,58597.0,58591.0,0.08801286]
[1725298175843,0.000816,58597.0,58591.0,0.0846]
[1725298176077,0.170667,58594.0,58592.0,0.01589735]
[1725298176301,0.000816,58597.0,58593.0,0.023]
[1725298176534,0.17066,58596.0,58593.0,0.023]
[1725298176781,0.17066,58596.0,58594.0,0.01589328]
[1725298177002,0.17066,58596.0,58595.0,0.023]
[1725298177692,0.17066,58596.0,58592.0,0.023]
[1725298177882,0.17066,58596.0,58595.0,0.01589125]
[1725298178125,0.51198,58596.0,58595.0,0.023]
[1725298178388,0.17066,58596.0,58595.0,0.03889125]
[1725298179487,0.17066,58596.0,58595.0,0.04589125]
[1725298179708,0.17066,58596.0,58595.0,0.05289125]
[1725298180142,0.000816,58597.0,58595.0,0.05289125]
[1725298180361,0.171473,58597.0,58596.0,0.023]
[1725298180594,0.000816,58597.0,58596.0,0.03888921]
[1725298181274,0.171473,58597.0,58596.0,0.03888921]
[1725298181489,0.000816,58597.0,58596.0,0.03888921]
[1725298182628,0.000816,58597.0,58596.0,0.04488921]
[1725298183521,0.000816,58597.0,58596.0,0.05088921]
[1725298184191,0.171473,58597.0,58596.0,0.05088921]
[1725298185164,0.000816,58597.0,58596.0,0.05088921]
[1725298185392,0.171473,58597.0,58596.0,0.05088921]
[1725298185824,0.000816,58597.0,58596.0,0.05088921]
[1725298186075,0.171473,58597.0,58596.0,0.05088921]
[1725298187467,0.05260041,58597.0,58596.0,0.05088921]
[1725298187704,0.56457141,58597.0,58596.0,0.05088921]
[1725298188361,0.0004,58599.0,58596.0,0.05088921]
[1725298188579,0.11761713,58599.0,58596.0,0.05088921]
[1725298188829,0.170655,58598.0,58596.0,0.05088921]
[1725298189285,0.170655,58598.0,58596.0,0.04488921]
[1725298189533,0.170655,58598.0,58596.0,0.04188921]
[1725298189754,0.170655,58598.0,58597.0,0.0622]
[1725298190219,0.170655,58598.0,58597.0,0.07813296]
[1725298192370,0.171051,58599.0,58597.0,0.15633296]
[1725298192608,0.170654,58598.0,58597.0,0.16133296]
[1725298192835,0.0004,58599.0,58597.0,0.16133296]
[1725298193066,0.171052,58599.0,58597.0,0.16133296]
[1725298193291,0.171052,58599.0,58597.0,0.16033296]
[1725298193754,0.170654,58598.0,58597.0,0.16433296]
[1725298194465,0.0004,58599.0,58597.0,0.18733296]
[1725298194466,0.171051,58599.0,58597.0,0.18733296]
[1725298194702,0.171051,58599.0,58597.0,0.18333296]
[1725298194932,0.171051,58599.0,58597.0,0.18633296]
[1725298195173,0.0004,58599.0,58597.0,0.35698996]
[1725298195424,0.0004,58599.0,58598.0,0.170654]
[1725298195666,0.0004,58599.0,58598.0,0.1970667]
[1725298195903,0.0004,58599.0,58598.0,0.03893093]
[1725298196872,0.0004,58599.0,58598.0,0.04293093]
[1725298197615,0.001215,58599.0,58598.0,0.04293093]
[1725298197857,0.001215,58599.0,58598.0,0.04593093]
[1725298199789,0.171866,58599.0,58598.0,0.04593093]
[1725298200275,0.001215,58599.0,58598.0,0.62009293]
[1725298200530,0.001215,58599.0,58598.0,0.71723697]
[1725298200783,0.001215,58599.0,58598.0,1.05854497]
[1725298201267,0.001215,58599.0,58598.0,1.05554497]
[1725298201521,0.001215,58599.0,58598.0,1.05554338]
[1725298201769,0.001215,58599.0,58598.0,1.06054338]
[1725298201999,0.001215,58599.0,58598.0,1.07054797]
[1725298202749,0.001215,58599.0,58598.0,1.0705482]
[1725298204153,0.001215,58599.0,58598.0,1.4118562]
[1725298205978,0.001215,58599.0,58598.0,1.4218562]
[1725298206649,0.28306611,58617.0,58600.0,0.01]
[1725298206881,0.28306611,58617.0,58605.0,0.341264]
[1725298206882,0.341204,58616.0,58605.0,0.341264]
[1725298207100,0.17061,58613.0,58609.0,0.17062]
[1725298207321,0.17061,58613.0,58610.0,0.023]
[1725298207565,0.170615,58612.0,58610.0,0.023]
[1725298207771,0.170615,58612.0,58608.0,0.193622]
[1725298208034,0.00816,58618.0,58612.0,0.341224]
[1725298208265,0.00816,58618.0,58613.0,0.02641176]
[1725298208530,0.00816,58618.0,58617.0,0.852992]
[1725298208755,0.00816,58618.0,58617.0,1.676218]
[1725298209916,0.00816,58618.0,58617.0,1.741918]
[1725298210585,0.00816,58618.0,58617.0,1.754918]
[1725298211029,0.00816,58618.0,58617.0,1.753918]
[1725298211248,0.00816,58618.0,58617.0,1.50793813]
[1725298211496,0.00816,58618.0,58617.0,1.52193813]
[1725298211717,0.00816,58618.0,58617.0,1.88913513]
[1725298212636,0.00816,58618.0,58617.0,2.00713513]
[1725298212914,0.00816,58618.0,58617.0,2.38260213]
[1725298213407,0.00816,58618.0,58617.0,2.5510629]
[1725298213653,0.0004,58619.0,58618.0,1.713864]
[1725298213913,0.0004,58619.0,58618.0,1.81298307]
[1725298214145,0.0004,58619.0,58618.0,2.00724928]
[1725298214390,0.00816,58629.0,58628.0,0.200566]
[1725298214636,0.00816,58646.0,58628.0,0.200566]
[1725298214637,0.00816,58646.0,58638.0,0.723075]
[1725298214864,0.00816,58646.0,58638.0,2.49714822]
[1725298215088,0.00816,58646.0,58638.0,1.45901015]
[1725298215351,0.00816,58646.0,58638.0,1.81008515]
[1725298215574,0.170519,58645.0,58638.0,1.45901015]
[1725298215792,0.00816,58646.0,58638.0,1.81408515]
[1725298216041,0.00816,58646.0,58638.0,1.82408515]
[1725298216264,0.00816,58646.0,58638.0,1.795187]
[1725298216479,0.00816,58646.0,58638.0,1.828187]
[1725298216923,0.341048,58643.0,58638.0,0.6295]
[1725298217149,0.170934,58639.0,58638.0,0.051]
[1725298217406,0.0004,58639.0,58638.0,0.023]
[1725298217624,0.0004,58639.0,58638.0,0.539612]
[1725298217887,0.0004,58639.0,58638.0,0.92023397]
[1725298218099,0.0004,58639.0,58638.0,0.55115897]
[1725298218316,0.0004,58639.0,58638.0,0.56515897]
[1725298218532,0.0004,58639.0,58638.0,0.55815897]
[1725298218990,0.0004,58639.0,58638.0,0.57115897]
[1725298219679,0.0004,58639.0,58638.0,0.64445897]
[1725298219925,0.0004,58639.0,58638.0,0.70625897]
[1725298220153,0.0004,58639.0,58638.0,1.86040897]
[1725298220390,0.0004,58639.0,58638.0,1.51933397]
[1725298221531,0.0004,58639.0,58638.0,1.15933397]
[1725298221766,0.170934,58639.0,58638.0,0.04154697]
[1725298221988,0.512003,58639.0,58638.0,0.04154697]
[1725298222218,0.512003,58639.0,58638.0,0.025]
[1725298222219,0.853072,58639.0,58638.0,0.025]
[1725298222451,0.512003,58639.0,58638.0,0.025]
[1725298222678,0.512003,58639.0,58638.0,0.013]
[1725298223182,0.512003,58639.0,58638.0,0.02]
[1725298223411,1.332741,58639.0,58638.0,0.02]
[1725298223637,1.332741,58639.0,58626.0,0.27057]
[1725298223638,0.170558,58631.0,58626.0,0.27057]
[1725298223855,0.170558,58631.0,58627.0,0.32054592]
[1725298224090,0.170558,58631.0,58628.0,0.01654214]
[1725298224310,0.480884,58639.0,58628.0,0.01654214]
[1725298224311,0.511692,58629.0,58628.0,0.01654214]
[1725298224761,0.511692,58629.0,58624.0,0.170577]
[1725298224991,0.170553,58633.0,58629.0,0.170561]
[1725298225215,0.170557,58632.0,58628.0,0.170566]
[1725298225436,0.170557,58632.0,58621.0,0.0658]
[1725298225437,0.19472419,58631.0,58630.0,0.01653808]
[1725298225656,0.170561,58630.0,58629.0,0.03954011]
[1725298225874,0.929105,58630.0,58629.0,0.023]
[1725298226312,0.929105,58630.0,58628.0,0.023]
[1725298226313,0.85282,58629.0,58628.0,0.023]
[1725298226745,0.85282,58629.0,58628.0,0.037]
[1725298227213,0.85282,58629.0,58628.0,0.023]
[1725298227473,0.0763,58630.0,58619.0,0.04989934]
[1725298227713,0.341128,58629.0,58628.0,0.003]
[1725298227934,0.85282,58629.0,58628.0,0.003]
[1725298228157,1.193948,58629.0,58628.0,0.003]
[1725298228651,1.599976,58629.0,58628.0,0.007]
[1725298228937,1.599976,58629.0,58612.0,0.04946856]
[1725298228938,2.37902579,58629.0,58612.0,0.04946856]
[1725298229162,1.19287619,58613.0,58612.0,0.04946856]
[1725298229389,1.19287619,58613.0,58597.0,0.3422055]
[1725298229390,0.511918,58603.0,58597.0,0.0632965]
[1725298229610,0.511918,58603.0,58601.0,0.04983183]
[1725298229611,0.170639,58603.0,58601.0,0.04983183]
[1725298229828,0.170639,58603.0,58602.0,0.01991401]
[1725298230263,0.511918,58603.0,58602.0,0.01991401]
[1725298230480,0.511918,58603.0,58597.0,0.0632965]
[1725298230481,0.170648,58600.0,58597.0,0.0632965]
[1725298230708,0.170654,58598.0,58597.0,0.0632965]
[1725298230930,0.170654,58598.0,58597.0,0.0008965]
[1725298230931,0.511962,58598.0,58597.0,0.0008965]
[1725298231150,0.170654,58598.0,58597.0,0.02082272]
[1725298231375,0.511962,58598.0,58597.0,0.02082272]
[1725298232062,0.170654,58598.0,58597.0,0.02082272]
[1725298232740,0.511962,58598.0,58597.0,0.04382272]
[1725298232951,0.511962,58598.0,58597.0,0.0238965]
[1725298233166,0.511962,58598.0,58597.0,0.03485191]
[1725298233410,0.513962,58598.0,58597.0,0.07185191]
[1725298233625,0.172654,58598.0,58597.0,0.0518965]
[1725298233853,0.172654,58598.0,58597.0,0.07185191]
[1725298233854,0.513962,58598.0,58597.0,0.07185191]
[1725298234068,0.513962,58598.0,58597.0,0.04885191]
[1725298234300,1.11357772,58598.0,58597.0,0.0288965]
[1725298234533,1.335378,58598.0,58597.0,0.0288965]
[1725298234770,1.18879419,58598.0,58597.0,0.0288965]
[1725298234989,1.53010219,58598.0,58597.0,0.0288965]
[1725298235884,0.91567,58598.0,58597.0,0.0148965]
[1725298236108,1.10939419,58598.0,58597.0,0.0008965]
[1725298236335,1.45370219,58598.0,58597.0,0.0048965]
[1725298236546,1.10939419,58598.0,58597.0,0.0048965]
[1725298236755,1.10939419,58598.0,58597.0,0.0008965]
[1725298236963,1.11539419,58598.0,58597.0,0.0008965]
[1725298237184,1.45670219,58598.0,58597.0,0.0008965]
[1725298237463,1.11539419,58598.0,58597.0,0.0008965]
[1725298238573,1.45670219,58598.0,58597.0,0.0008965]
[1725298238809,1.11539419,58598.0,58597.0,0.0008965]
[1725298239924,1.45670219,58598.0,58597.0,0.0008965]
[1725298240150,0.85927,58598.0,58597.0,0.0008965]
[1725298241083,1.200578,58598.0,58597.0,0.0008965]
[1725298241986,1.337778,58598.0,58597.0,0.0008965]
[1725298242456,1.679086,58598.0,58597.0,0.0008965]
[1725298242899,1.337778,58598.0,58597.0,0.0008965]
[1725298245083,1.679086,58598.0,58597.0,0.0008965]
[1725298247354,1.337778,58598.0,58597.0,0.0008965]
[1725298247581,1.679086,58598.0,58597.0,0.0008965]
[1725298248234,1.337778,58598.0,58597.0,0.0008965]
[1725298248476,0.85927,58598.0,58597.0,0.0008965]
[1725298248724,0.006,58598.0,58597.0,0.0008965]
[1725298248955,0.006,58598.0,58597.0,0.02087779]
[1725298249181,0.003,58598.0,58597.0,0.04387779]
[1725298249411,0.341281,58603.0,58597.0,0.04387779]
[1725298249649,0.003,58598.0,58597.0,0.04387779]
[1725298249868,0.006,58598.0,58597.0,0.04387779]
[1725298250147,0.173654,58598.0,58597.0,0.04387779]
[1725298250378,0.514962,58598.0,58597.0,0.04887779]
[1725298251352,0.85627,58598.0,58597.0,0.02587779]
[1725298251605,1.197578,58598.0,58597.0,0.0058965]
[1725298261217,1.280678,58598.0,58597.0,0.0058965]
[1725298261685,1.621986,58598.0,58597.0,0.0058965]
[1725298262153,1.786286,58598.0,58597.0,0.0058965]
[1725298262369,1.784286,58598.0,58597.0,0.0058965]
[1725298262608,1.786286,58598.0,58597.0,0.0058965]
[1725298262852,1.796286,58598.0,58597.0,0.0058965]
[1725298263064,1.796286,58598.0,58597.0,0.0038965]
[1725298263285,1.793286,58598.0,58597.0,0.0008965]
[1725298263516,1.96283764,58598.0,58597.0,0.0008965]
[1725298263739,2.30414564,58598.0,58597.0,0.0008965]
[1725298263968,2.92942564,58598.0,58597.0,0.0008965]